Cogmind - Beta 13 @@@ ROGUE MODE // 2024.06.23 @ 21:41:14 Player: Silis Result: Destroyed by H-61 Shepherd with Heavy Assault Cannon Performance ------------- Evolutions (2) 1000 Regions Visited (3) 600 Robots Destroyed (12) 60 Value Destroyed (433) 433 Prototype IDs (0) 0 Alien Tech Used (0) 0 Bonus (0) 0 TOTAL SCORE: 2093 Bonus ------- None Cogmind --------- Core Integrity 0/550 Matter 262/300 Energy 100/100 System Corruption 0% Temperature Cool (0) Movement Core (50) Location -8/Materials Parts ------- > --- POWER (3) -------- (None) > --- PROPULSION (3) --- (None) > --- UTILITY (2) ------ (None) > --- WEAPON (3) ------- (None) > --- INVENTORY (5) ---- Flight Unit Small Storage Unit Huge Storage Unit Improved Datajack Peak State ------------ > --- POWER ------------ Ion Engine Ion Engine > --- PROPULSION ------- Light Treads Light Treads Light Treads > --- UTILITY ---------- Huge Storage Unit System Shield > --- WEAPON ----------- Medium Laser Small Laser Light Assault Rifle > --- INVENTORY -------- Flight Unit Small Storage Unit Grenade Launcher Improved Datajack [Rating: 12] Favorites ----------- Power Ion Engine Engine Ion Engine Propulsion Light Treads Treads Light Treads Wheel Wheel Utility Small Storage Unit Storage Small Storage Unit Hackware System Shield Weapon Medium Laser Energy Gun Medium Laser Ballistic Gun Light Assault Rifle Launcher Grenade Launcher Special Melee Weapon Improved Datajack Build | -11 -10 -9 -8 ------- Run | Yrd Mat Mat Mat Slots Evolved 4 | . . 2 2 Power 2 | . . 1 1 Propulsion 1 | . . 1 . Utility . | . . . . Weapon 1 | . . . 1 Parts Attached 17 | 6 2 3 6 Power 2 | 1 . 1 . Engine 2 | 1 . 1 . Core . | . . . . Reactor . | . . . . Propulsion 4 | 2 . 1 1 Treads 3 | 2 . 1 . Leg . | . . . . Wheel 1 | . . . 1 Hover . | . . . . Flight . | . . . . Utility 3 | 1 . 1 1 Device . | . . . . Storage 2 | 1 . 1 . Processor . | . . . . Hackware 1 | . . . 1 Protection . | . . . . Artifact . | . . . . Weapon 8 | 2 2 . 4 Energy Gun 4 | 2 1 . 1 Energy Cannon . | . . . . Ballistic Gun 2 | . 1 . 1 Ballistic Cannon . | . . . . Launcher 1 | . . . 1 Special Weapon . | . . . . Impact Weapon . | . . . . Slashing Weapon . | . . . . Piercing Weapon . | . . . . Special Melee Weapon 1 | . . . 1 Unidentified Prototypes . | . . . . Parts Lost 11 | . 1 . 10 Power 2 | . . . 2 Propulsion 3 | . . . 3 Utility . | . . . . Weapon 6 | . 1 . 5 Highest Loss Streak 4 | . 1 . 4 To Critical Strikes . | . . . . Average Slot Usage (%) 69 | . 84 79 55 Engine 13 | . 14 22 6 Treads 20 | . 28 24 13 Wheel 1 | . . . 2 Storage 9 | . 14 11 6 Hackware 3 | . . . 7 Energy Gun 13 | . 19 11 12 Ballistic Gun 7 | . 7 11 4 Naked Turns 3 | . . . 3 Heaviest Build 94 | 13 13 93 94 Greatest Support 60 | 40 40 60 60 Greatest Overweight (x) 8 | . . 1 8 Average Overweight (x) . | . . . 1 Largest Inventory Capacity 25 | 8 8 25 25 Average Capacity 14 | 7 8 12 20 Most Carried 6 | 4 6 4 5 Average Carried 3 | 1 3 3 3 Final Capacity 25 | 8 8 25 5 Final Carried 4 | 2 4 4 4 Class Distribution -------------------- 83% | Mutant 16% | Gunner Dominant Class ---------------- Mutant | -10/Materials Mutant | -9/Materials Mutant | -8/Materials Resources | -11 -10 -9 -8 ----------- Run | Yrd Mat Mat Mat Matter Collected 434 | 220 68 10 136 Remotely . | . . . . Salvage Created 488 | . 139 113 236 Parts 23 | . 11 7 5 Haulers Intercepted . | . . . . Recyclers Shooed . | . . . . Parts Field Recycled . | . . . . Retrieved Matter . | . . . . Parts Self-Destructed . | . . . . Prevented . | . . . . Kills | -11 -10 -9 -8 ------- Run | Yrd Mat Mat Mat Combat Hostiles Destroyed 12 | . 5 2 5 Guns 12 | . 5 2 5 Classes Destroyed 4 | . 2 1 1 Swarmer 3 | . 3 . . Grunt 6 | . 2 . 4 Duelist 1 | . . . 1 Sentry 2 | . . 2 . Best Kill Streak 3 | . 2 1 3 Combat Bots Only 3 | . 2 1 3 Max Kills in Single Turn 1 | . 1 1 1 Gunslinging . | . . . . Exploded . | . . . . Melee . | . . . . Uniques/NPCs Destroyed . | . . . . Combat | -11 -10 -9 -8 -------- Run | Yrd Mat Mat Mat Hostile Shots Fired 138 | . 30 10 98 Missed 39 | . 12 3 24 Damage Taken 1665 | . 170 102 1393 Core 601 | . 11 . 590 Absorbed by Shields . | . . . . Core Remaining (%) 98 | 100 95 100 . Volleys Fired 57 | . 15 7 35 Largest 3 | . 2 2 3 Hottest 110 | . 80 70 110 Shots Fired 92 | . 27 13 52 Gun 90 | . 27 13 50 Cannon . | . . . . Launcher 2 | . . . 2 Special . | . . . . Kinetic 39 | . 13 7 19 Thermal 43 | . 6 6 31 Explosive 2 | . . . 2 Electromagnetic 8 | . 8 . . Robot Hit Streak 18 | . 8 9 18 Robot Miss Streak 3 | . 3 2 2 Penetration Max . | . . . . Secondary Targets 2 | . 1 . 1 Max Gunslinging Chain 1 | . 1 . 1 Shots Hit Robots 66 | . 15 9 42 Core Hits 28 | . 8 5 15 Critical Kills . | . . . . Critical Parts Destroyed . | . . . . Critical Strikes 5 | . 3 1 1 Burn 5 | . 3 1 1 Melee Attacks 2 | . . . 2 Impact . | . . . . Slashing . | . . . . Piercing . | . . . . Sneak Attacks . | . . . . Combat Hostiles . | . . . . Follow-up Attacks . | . . . . Damage Inflicted 905 | . 165 96 644 Guns 779 | . 165 93 521 Cannons . | . . . . Explosions 123 | . . . 123 Melee . | . . . . Ramming 3 | . . 3 . Kinetic 325 | . 47 31 247 Thermal 385 | . 49 62 274 Explosive 123 | . . . 123 Electromagnetic 69 | . 69 . . Impact . | . . . . Slashing . | . . . . Piercing . | . . . . Highest Corruption . | . . . . Average Corruption . | . . . . Corruption Purged . | . . . . Corruption Blocked . | . . . . Overload Shots . | . . . . Overflow Damage . | . . . . Projectiles . | . . . . Explosions . | . . . . Melee . | . . . . Knockbacks . | . . . . Impact . | . . . . Kinetic . | . . . . Secondary . | . . . . Self-Inflicted Damage 48 | . . . 48 Shots 2 | . . . 2 Rammed 3 | . . 2 1 Targets Rammed 3 | . . 2 1 Kicked . | . . . . Crushed . | . . . . Highest Temperature 467 | . 98 100 467 Average Temperature 145 | . 29 44 271 Received Heat Transfer 729 | . 54 36 639 Effects 2 | . . . 2 Matter Decay 1 | . . . 1 Short Circuit 1 | . . . 1 Siege Activations . | . . . . Robots Corrupted . | . . . . Combat Hostiles . | . . . . Parts Fried . | . . . . Impact Corruptions . | . . . . Robots Melted . | . . . . Combat Hostiles . | . . . . Parts Melted 12 | . 5 2 5 Heat Transferred 1410 | . 370 259 781 Parts Sabotaged . | . . . . Parts Stolen . | . . . . Parts Stripped . | . . . . Power Chain Reactions . | . . . . Alert | -11 -10 -9 -8 ------- Run | Yrd Mat Mat Mat Peak Influence 127 | . 125 127 118 Initial 53 | . . 52 53 Average 64 | . 63 79 68 Maximum Alert Level . | . . . . Low Security (%) 100 | 100 100 100 100 Level 1 . | . . . . Level 2 . | . . . . Level 3 . | . . . . Level 4 . | . . . . Level 5 . | . . . . High Security . | . . . . Max Security . | . . . . Squads Dispatched 7 | . 1 3 3 Investigation 3 | . 1 2 . Extermination . | . . . . Reinforcement 4 | . . 1 3 Assault . | . . . . Garrison . | . . . . Intercept . | . . . . Searches Triggered . | . . . . Construction Impeded . | . . . . Haulers Reinforced . | . . . . Active Scanning Responses . | . . . . Cargo Convoy Interrupts . | . . . . Stealth | -11 -10 -9 -8 --------- Run | Yrd Mat Mat Mat Distress Signals 2 | . . 2 . Communications Jammed . | . . . . Distress Signals . | . . . . Times Spotted 34 | . 7 6 21 Peak Tracking Total 4 | . 3 3 4 Tactical Retreats 4 | . 1 . 3 Traps | -11 -10 -9 -8 ------- Run | Yrd Mat Mat Mat Traps Triggered 2 | . 1 1 . Indirectly . | . . . . Trap Hack Attempts . | . . . . Triggered . | . . . . Disarmed . | . . . . Reprogrammed . | . . . . Reused . | . . . . Traps Extracted . | . . . . Installed . | . . . . Triggered . | . . . . Machines | -11 -10 -9 -8 ---------- Run | Yrd Mat Mat Mat Machines Disabled 1 | . . . 1 Max in Single Turn 1 | . . . 1 Machines Repaired . | . . . . Machines Dismantled . | . . . . Machines Sabotaged . | . . . . Overloaded Fab Kills . | . . . . Hacking | -11 -10 -9 -8 --------- Run | Yrd Mat Mat Mat Machines Accessed 1 | . . 1 . Terminals 1 | . . 1 . Fabricators . | . . . . Repair Stations . | . . . . Recycling Units . | . . . . Scanalyzers . | . . . . Garrison Access . | . . . . Total Hacks 2 | . . 2 . Successful 1 | . . 1 . Failed 1 | . . 1 . Catastrophic . | . . . . Database Lockouts . | . . . . Manual . | . . . . Terminals 2 | . . 2 . Fabricators . | . . . . Repair Stations . | . . . . Recycling Units . | . . . . Scanalyzers . | . . . . Garrison Access . | . . . . Terminal Hacks 1 | . . 1 . Zone Layout 1 | . . 1 . Fabricator Hacks . | . . . . Repair Station Hacks . | . . . . Recycling Unit Hacks . | . . . . Scanalyzer . | . . . . Garrison Access Hacks . | . . . . Unauthorized Hacks . | . . . . Terminals . | . . . . Fabricators . | . . . . Repair Stations . | . . . . Recycling Units . | . . . . Scanalyzers . | . . . . Garrison Access . | . . . . Data Cores Recovered . | . . . . Used . | . . . . Hacking Detections . | . . . . Full Trace Events . | . . . . Feedback Events . | . . . . Feedback Blocked . | . . . . Robot Schematics Acquired . | . . . . Robots Built . | . . . . Authchips . | . . . . Time . | . . . . Total Robot Build Rating . | . . . . Part Schematics Acquired . | . . . . Parts Built . | . . . . Authchips . | . . . . Time . | . . . . Total Part Build Rating . | . . . . Parts Repaired . | . . . . Time . | . . . . Parts Recycled . | . . . . Recycled Matter . | . . . . Retrieved Matter . | . . . . Retrieved Components . | . . . . Parts Scanalyzed . | . . . . Part Schematics Acquired . | . . . . Parts Damaged . | . . . . Bothacking | -11 -10 -9 -8 ------------ Run | Yrd Mat Mat Mat Used RIF Installer . | . . . . Robots Hacked 1 | . . . 1 Non-combat . | . . . . Combat 1 | . . . 1 Robot Hacks Applied 1 | . . . 1 parse_system 1 | . . . 1 Relay Couplers Released . | . . . . Fabnet Peak Effective % . | . . . . Robots Rewired . | . . . . Allies Hacked . | . . . . Hacks Repelled . | . . . . Allies | -11 -10 -9 -8 -------- Run | Yrd Mat Mat Mat Total Allies . | . . . . Largest Group . | . . . . Highest-Rated Group . | . . . . Highest-Rated Ally . | . . . . Total Orders . | . . . . Ally Attacks . | . . . . Total Damage . | . . . . Kills . | . . . . Allies Corrupted . | . . . . Allies Melted . | . . . . Intel | -11 -10 -9 -8 ------- Run | Yrd Mat Mat Mat Robot Analysis Total . | . . . . Derelict Logs Recovered . | . . . . Drone Launches . | . . . . Drone Recoveries . | . . . . Exploration | -11 -10 -9 -8 ------------- Run | Yrd Mat Mat Mat Turns Passed 1147 | 111 183 373 480 Spaces Moved 647 | 71 87 198 291 Core 176 | 14 . . 162 Treads 414 | 57 87 198 72 Legs . | . . . . Wheels 57 | . . . 57 Hover . | . . . . Flight . | . . . . Fastest Speed 50 | 50 160 160 50 Average Speed 149 | 138 160 175 131 Slowest Speed 480 | 160 160 240 480 Overloaded Moves . | . . . . Propulsion Burnouts . | . . . . Robots Hopped . | . . . . Cave-ins Triggered . | . . . . Exploration Rate (%) 16 | 5 13 18 30 Regions Visited 3 Branch Regions . Pre-discovered Areas . | . . . . Known Exits Taken . | . . . . Unknown Exits Taken 3 | 1 1 1 . Scrap Searched . | . . . . Spaces Dug . | . . . . Terrain Destroyed 13 | . . . 13 Melee . | . . . . Projectile . | . . . . AOE 13 | . . . 13 Terrain Rammed . | . . . . Walls Destroyed . | . . . . Machines Disabled . | . . . . Actions | -11 -10 -9 -8 --------- Run | Yrd Mat Mat Mat Total 745 | 84 107 212 342 Wait . | . . . . Move 644 | 70 86 197 291 Hop . | . . . . Pick Up 17 | 8 3 2 4 Fast Attach . | . . . . Attach 17 | 6 2 3 6 Detach 4 | . 1 1 2 Swap . | . . . . Drop 1 | . . . 1 Fire 57 | . 15 7 35 Melee 2 | . . . 2 Ram . | . . . . Kick . | . . . . Crush 3 | . . 2 1 Escape Stasis . | . . . . Rewire . | . . . . Trap . | . . . . Miscellaneous . | . . . . Route ------- -11/Scrapyard -10/Materials -9/Materials (discovered 2 exits: *Mat / [*Min]) -8/Materials (discovered 1 exit: [*Fac]) History --------- Turn | Location | Event 21 | -11/Scrapyard | Discovered new exit (range 15) 112 | -11/Scrapyard | Entered Materials 269 | -10/Materials | Discovered new exit (range 10) 295 | -10/Materials | Entered another Materials area 295 | -9/Materials | Evolved 2 slots: Power x1, Propulsion x1 316 | -9/Materials | Build established: Mutant 539 | -9/Materials | Discovered new exit (range 14) 649 | -9/Materials | Discovered new exit (range 5) 668 | -9/Materials | Entered another Materials area 668 | -8/Materials | Evolved 2 slots: Power x1, Weapon x1 891 | -8/Materials | Lost 4 parts (2p1n1w) 1063 | -8/Materials | Lost 3 parts (1n2w) 1080 | -8/Materials | Core integrity fell below 50% 1142 | -8/Materials | Discovered new exit (range 11) 1143 | -8/Materials | Core integrity fell below 20% 1148 | -8/Materials | Destroyed by H-61 Shepherd with Heavy Assault Cannon Last Messages --------------- U-05 Engineer lays Concrete. Acquired Minigun. M-13 Machinist repairs Aluminum Leg. G-47 Trooper destroyed. Acquired 40 matter. U-05 Engineer destroyed. G-47 Trooper destroyed. Minigun destroyed. Acquired 16 matter. Connecting with Terminal... Current location identified: Materials M-13 Machinist repairs G-47 Trooper. ALERT: Suspicious intruders detected, dispatching Cutter reinforcements to area. Knocked back. EXIT=FOUND C-17 Slicer knocked back. Knocked back. System Shield severed. Slug penetrates Wall. Map ----- +----------------------------------------------------+ | | | | | | | ?????????????????????????????????????????????????? | | ?????????????????????????????????????????????????? | | ?????????????????????????????????????????????????? | | ????????????????????###????????##########????????? | | ???????????????????? ????????# [ #????????? | | ????????????????????? ?####?# #????????? | | ?????????????????????? ?# ## #????????? | | ??????????????????????? # < ## #????????? | | ???????????????????????? # ## #????????? | | ????????????????????????? + H ## #????????? | | ??????????????????????????# ## #########? | | ??????????????????????????# ## ?# !#? | | ?????????????????????????## "# ??# #? | | ?????????????????????????# ##+##### """ #? | | ?????????????????????????# + """ #? | | ?????????????????????????# g # """ #? | | ?????????????????????????# #! #? | | ?????????????????????????# ##### ######### | | ????????????????????????##;# # #???# | | ????????????????????????# c # # ##### | | ????????????????????????# c "" + + | | ????????????????????????# c """ # #+##### | | ????????????????????????#@""" S" # # ???# | | ????????????????????????# """ #?? # "???# | | ????????????????????????#%""" #??? # "Y??# | | ????????????????????????# #????# ""??# | | ????????????????????????#u k #????# ?##### | | ????????????????????????#/#########????########## | | ????????????????????????# #?????????? | | ???????????????????????? ?????????? | | ????????????????????????#+#?????????? | | ????????????????????????????????????? #######+### | | ????????????????????????????????????????????????## | | ?????????????????????????????????????????????????? | | ?????????????????????????????????????????????????? | | ?????????????????????????????????????????????????? | | ?????????????????????????????????????????????????? | | ?????????????????????????????????????????????????? | | ?????????????????????????????????????????????????? | | ??????????????????????????????????????????????+??? | | ?????????????????????????????????????????????# ??? | | ?????????????????????????????????????????????# ??? | | ?????????????????????????????????????????????# ??? | | ????????????????????????????????????????????? ??? | | ?????????????????????????????????????????????# #?? | | ?????????????????????????????????????????????# #? | | ?????????????????????????????????????????????# ### | +----------------------------------------------------+ Best States ------------- Heat Dissipation 31 Energy Generation 15 Energy Capacity 400 Matter Stores 300 Matter Capacity 300 Sight Range 16 Terrain Scan Density 10 Evasion (%) 50 Recoil Reduction 3 Defensive Hacking 10 Item Schematics ----------------- None Robot Schematics ------------------ None Fabricated ------------ Nothing Alien Tech Used ----------------- None Achievements -------------- None Challenges ------------ None Game ------ Seed PortableFusionLeg Manual? 0 Play Time 00:12:46 Cumulative 4.3 hours Start 2024.06.23 @ 21:32:07 End 2024.06.23 @ 21:41:14 Sessions 1 Manual Loads 0 Difficulty Rogue Special Mode None Game No. 14 Rogue 14 Adventurer 0 Explorer 0 Win Type - Total 0 Types 0/0/0/0/0/0/0/0/0 Lore% 2 Gallery% 9 Achievement% 12 Wizard Run 0 Options --------- Layout 1 ASCII 0 Keyboard 0 Movement Arrows Keybinds 0 Fullscreen 1 Font 32/SmallcapsGlow Map View 50x40 Zoom Use 0% Tactical HUD 0 Map Filters NONE Filters NONE Steam 1 RUN: b1a32eb6-685d-4a51-98aa-5cac1e67ab72